Cogmind - Beta 13 @@@ ROGUE MODE // 2024.04.24 @ 04:38:13 Player: e.v.o Result: Self-destructed Performance ------------- Evolutions (1) 500 Regions Visited (2) 400 Robots Destroyed (18) 90 Value Destroyed (490) 490 Prototype IDs (3) 60 Alien Tech Used (0) 0 Bonus (0) 0 TOTAL SCORE: 1540 Bonus ------- None Cogmind --------- Core Integrity 294/400 Matter 266/300 Energy 125/125 System Corruption 9% Temperature Cool (0) Movement Treading (145) Location -9/Materials Parts ------- > --- POWER (1) -------- Light Ion Engine > --- PROPULSION (3) --- Advanced Treads Advanced Treads Advanced Treads > --- UTILITY (3) ------ Small Storage Unit > --- WEAPON (2) ------- Advanced Beam Cannon > --- INVENTORY (8) ---- Light Ion Engine Light Treads Light Treads Advanced Treads Flight Unit Flight Unit Flight Unit Beam Rifle Peak State ------------ > --- POWER ------------ Ion Engine > --- PROPULSION ------- Advanced Treads Advanced Treads Advanced Treads > --- UTILITY ---------- Heat Sink Small Storage Unit Improved Signal Interpreter > --- WEAPON ----------- Advanced Beam Cannon Rocket Launcher > --- INVENTORY -------- Light Ion Engine Light Treads Light Treads Advanced Treads Flight Unit Flight Unit Flight Unit Katana [Rating: 21] Favorites ----------- Power Ion Engine Engine Ion Engine Propulsion Aluminum Leg Treads Advanced Treads Leg Aluminum Leg Utility Small Storage Unit Device Heat Sink Storage Small Storage Unit Processor Improved Signal Interpreter Weapon Small Laser Energy Gun Small Laser Energy Cannon Advanced Beam Cannon Ballistic Gun Light Assault Rifle Launcher Rocket Launcher Build | -11 -10 -9 ------- Run | Yrd Mat Mat Slots Evolved 2 | . . 2 Power . | . . . Propulsion 1 | . . 1 Utility 1 | . . 1 Weapon . | . . . Parts Attached 31 | 6 12 13 Power 3 | 1 1 1 Engine 3 | 1 1 1 Core . | . . . Reactor . | . . . Propulsion 14 | 2 7 5 Treads 3 | . . 3 Leg 11 | 2 7 2 Wheel . | . . . Hover . | . . . Flight . | . . . Utility 5 | 1 2 2 Device 3 | . 2 1 Storage 1 | 1 . . Processor 1 | . . 1 Hackware . | . . . Protection . | . . . Artifact . | . . . Weapon 9 | 2 2 5 Energy Gun 4 | 1 2 1 Energy Cannon 3 | . . 3 Ballistic Gun 1 | 1 . . Ballistic Cannon . | . . . Launcher 1 | . . 1 Special Weapon . | . . . Impact Weapon . | . . . Slashing Weapon . | . . . Piercing Weapon . | . . . Special Melee Weapon . | . . . Unidentified Prototypes 1 | . . 1 Parts Lost 5 | . 2 3 Power . | . . . Propulsion . | . . . Utility 2 | . . 2 Weapon 3 | . 2 1 Highest Loss Streak 3 | . 1 3 To Critical Strikes . | . . . Average Slot Usage (%) 92 | . 92 93 Engine 12 | . 14 11 Treads 7 | . . 17 Leg 22 | . 28 14 Device 9 | . 7 10 Storage 12 | . 14 11 Processor 2 | . . 5 Energy Gun 12 | . 15 8 Energy Cannon 1 | . . 3 Ballistic Gun 7 | . 12 . Launcher 4 | . . 9 Naked Turns . | . . . Heaviest Build 19 | 13 14 19 Greatest Support 66 | 20 20 66 Greatest Overweight (x) 2 | 2 . . Average Overweight (x) . | . . . Largest Inventory Capacity 8 | 8 8 8 Average Capacity 7 | 7 8 8 Most Carried 8 | 6 8 8 Average Carried 7 | 3 7 7 Final Capacity 8 | 8 8 8 Final Carried 8 | 6 8 8 Class Distribution -------------------- 75% | Mutant 24% | Scavenger-Mutant Dominant Class ---------------- Mutant | -10/Materials Mutant | -9/Materials Resources | -11 -10 -9 ----------- Run | Yrd Mat Mat Matter Collected 540 | 215 192 133 Remotely . | . . . Salvage Created 589 | . 437 152 Parts 38 | . 25 13 Haulers Intercepted 1 | . . 1 Recyclers Shooed 1 | . 1 . Parts Field Recycled . | . . . Retrieved Matter . | . . . Parts Self-Destructed . | . . . Prevented . | . . . Kills | -11 -10 -9 ------- Run | Yrd Mat Mat Combat Hostiles Destroyed 14 | . 12 2 Guns 12 | . 12 . Cannons 1 | . . 1 AOE 1 | . . 1 Classes Destroyed 6 | . 2 4 Builder 2 | . . 2 Hauler 1 | . . 1 Watcher 1 | . . 1 Swarmer 3 | . 3 . Grunt 9 | . 9 . Sentry 2 | . . 2 Best Kill Streak 5 | . 3 5 Combat Bots Only 3 | . 3 1 Max Kills in Single Turn 1 | . 1 1 Gunslinging . | . . . Exploded 1 | . . 1 Melee . | . . . Uniques/NPCs Destroyed . | . . . Combat | -11 -10 -9 -------- Run | Yrd Mat Mat Hostile Shots Fired 85 | . 67 18 Missed 24 | . 14 10 Damage Taken 1192 | . 613 579 Core 245 | . 139 106 Absorbed by Shields . | . . . Core Remaining (%) 72 | 100 44 . Volleys Fired 57 | . 41 16 Largest 2 | . 2 2 Hottest 101 | . 60 101 Shots Fired 97 | . 76 21 Gun 79 | . 76 3 Cannon 13 | . . 13 Launcher 5 | . . 5 Special . | . . . Kinetic 37 | . 37 . Thermal 40 | . 24 16 Explosive 5 | . . 5 Electromagnetic 15 | . 15 . Robot Hit Streak 11 | . 11 4 Robot Miss Streak 5 | . 5 3 Penetration Max . | . . . Secondary Targets 1 | . 1 . Max Gunslinging Chain 1 | . 1 . Shots Hit Robots 62 | . 48 14 Core Hits 36 | . 26 10 Critical Kills . | . . . Critical Parts Destroyed . | . . . Critical Strikes 1 | . 1 . Corrupt 1 | . 1 . Melee Attacks . | . . . Impact . | . . . Slashing . | . . . Piercing . | . . . Sneak Attacks . | . . . Combat Hostiles . | . . . Follow-up Attacks . | . . . Damage Inflicted 987 | . 522 465 Guns 532 | . 512 20 Cannons 185 | . . 185 Explosions 258 | . . 258 Melee . | . . . Ramming 12 | . 10 2 Kinetic 183 | . 183 . Thermal 413 | . 208 205 Explosive 258 | . . 258 Electromagnetic 121 | . 121 . Impact . | . . . Slashing . | . . . Piercing . | . . . Highest Corruption 9 | . . 9 Average Corruption 9 | . . 9 Corruption Purged . | . . . Corruption Blocked . | . . . Overload Shots . | . . . Overflow Damage . | . . . Projectiles . | . . . Explosions . | . . . Melee . | . . . Knockbacks . | . . . Impact . | . . . Kinetic . | . . . Secondary . | . . . Self-Inflicted Damage 57 | . . 57 Shots 2 | . . 2 Rammed 1 | . . 1 Targets Rammed 5 | . 4 1 Kicked 4 | . 4 . Crushed . | . . . Highest Temperature 72 | . 44 72 Average Temperature 22 | . 17 33 Received Heat Transfer 381 | . 318 63 Siege Activations . | . . . Robots Corrupted . | . . . Combat Hostiles . | . . . Parts Fried . | . . . Impact Corruptions . | . . . Robots Melted . | . . . Combat Hostiles . | . . . Parts Melted . | . . . Heat Transferred 858 | . 475 383 Parts Sabotaged . | . . . Parts Stolen . | . . . Parts Stripped . | . . . Power Chain Reactions . | . . . Alert | -11 -10 -9 ------- Run | Yrd Mat Mat Peak Influence 300 | . 280 300 Initial 118 | . . 118 Average 147 | . 138 191 Maximum Alert Level 1 | . 1 1 Low Security (%) 65 | 100 59 66 Level 1 34 | . 40 33 Level 2 . | . . . Level 3 . | . . . Level 4 . | . . . Level 5 . | . . . High Security . | . . . Max Security . | . . . Squads Dispatched 2 | . 1 1 Investigation 1 | . 1 . Extermination . | . . . Reinforcement 1 | . . 1 Assault . | . . . Garrison . | . . . Intercept . | . . . Searches Triggered . | . . . Construction Impeded 1 | . . 1 Haulers Reinforced . | . . . Active Scanning Responses . | . . . Cargo Convoy Interrupts . | . . . Stealth | -11 -10 -9 --------- Run | Yrd Mat Mat Distress Signals . | . . . Communications Jammed . | . . . Distress Signals . | . . . Times Spotted 17 | . 13 4 Peak Tracking Total 4 | . 4 2 Tactical Retreats . | . . . Traps | -11 -10 -9 ------- Run | Yrd Mat Mat Traps Triggered 1 | . 1 . Indirectly . | . . . Trap Hack Attempts . | . . . Triggered . | . . . Disarmed . | . . . Reprogrammed . | . . . Reused . | . . . Traps Extracted . | . . . Installed . | . . . Triggered . | . . . Machines | -11 -10 -9 ---------- Run | Yrd Mat Mat Machines Disabled 1 | . . 1 Max in Single Turn 1 | . . 1 Machines Repaired . | . . . Machines Dismantled . | . . . Machines Sabotaged . | . . . Overloaded Fab Kills . | . . . Hacking | -11 -10 -9 --------- Run | Yrd Mat Mat Machines Accessed 2 | . 1 1 Terminals 1 | . 1 . Fabricators . | . . . Repair Stations . | . . . Recycling Units . | . . . Scanalyzers 1 | . . 1 Garrison Access . | . . . Total Hacks 6 | . 4 2 Successful 3 | . 1 2 Failed 3 | . 3 . Catastrophic . | . . . Database Lockouts . | . . . Manual . | . . . Terminals 4 | . 4 . Fabricators . | . . . Repair Stations . | . . . Recycling Units . | . . . Scanalyzers 2 | . . 2 Garrison Access . | . . . Terminal Hacks 1 | . 1 . Prototype ID Bank 1 | . 1 . Fabricator Hacks . | . . . Repair Station Hacks . | . . . Recycling Unit Hacks . | . . . Scanalyzer 2 | . . 2 Insert Component 1 | . . 1 Analyze 1 | . . 1 Garrison Access Hacks . | . . . Unauthorized Hacks . | . . . Terminals . | . . . Fabricators . | . . . Repair Stations . | . . . Recycling Units . | . . . Scanalyzers . | . . . Garrison Access . | . . . Data Cores Recovered . | . . . Used . | . . . Hacking Detections 2 | . 1 1 Full Trace Events 1 | . 1 . Feedback Events . | . . . Feedback Blocked . | . . . Robot Schematics Acquired . | . . . Robots Built . | . . . Authchips . | . . . Time . | . . . Total Robot Build Rating . | . . . Part Schematics Acquired 1 | . . 1 Parts Built . | . . . Authchips . | . . . Time . | . . . Total Part Build Rating . | . . . Parts Repaired . | . . . Time . | . . . Parts Recycled . | . . . Recycled Matter . | . . . Retrieved Matter . | . . . Retrieved Components . | . . . Parts Scanalyzed 1 | . . 1 Part Schematics Acquired 1 | . . 1 Parts Damaged . | . . . Bothacking | -11 -10 -9 ------------ Run | Yrd Mat Mat Used RIF Installer . | . . . Robots Hacked . | . . . Non-combat . | . . . Combat . | . . . Robot Hacks Applied . | . . . Relay Couplers Released . | . . . Fabnet Peak Effective % . | . . . Robots Rewired . | . . . Allies Hacked . | . . . Hacks Repelled . | . . . Allies | -11 -10 -9 -------- Run | Yrd Mat Mat Total Allies . | . . . Largest Group . | . . . Highest-Rated Group . | . . . Highest-Rated Ally . | . . . Total Orders . | . . . Ally Attacks . | . . . Total Damage . | . . . Kills . | . . . Allies Corrupted . | . . . Allies Melted . | . . . Intel | -11 -10 -9 ------- Run | Yrd Mat Mat Robot Analysis Total . | . . . Derelict Logs Recovered . | . . . Drone Launches . | . . . Drone Recoveries . | . . . Exploration | -11 -10 -9 ------------- Run | Yrd Mat Mat Turns Passed 729 | 61 388 280 Spaces Moved 408 | 40 206 162 Core 8 | 8 . . Treads 66 | . . 66 Legs 334 | 32 206 96 Wheels . | . . . Hover . | . . . Flight . | . . . Fastest Speed 50 | 50 120 120 Average Speed 123 | 117 120 130 Slowest Speed 190 | 190 120 145 Overloaded Moves . | . . . Propulsion Burnouts . | . . . Robots Hopped . | . . . Cave-ins Triggered 1 | . . 1 Exploration Rate (%) 15 | 3 24 19 Regions Visited 2 Branch Regions . Pre-discovered Areas . | . . . Known Exits Taken . | . . . Unknown Exits Taken 2 | 1 1 . Scrap Searched . | . . . Spaces Dug . | . . . Terrain Destroyed 39 | . . 39 Melee . | . . . Projectile 1 | . . 1 AOE 38 | . . 38 Terrain Rammed . | . . . Walls Destroyed . | . . . Machines Disabled . | . . . Actions | -11 -10 -9 --------- Run | Yrd Mat Mat Total 546 | 51 281 214 Wait 5 | . 5 . Move 405 | 39 205 161 Hop . | . . . Pick Up 16 | 6 4 6 Fast Attach 15 | 6 2 7 Attach 2 | . 1 1 Detach . | . . . Swap 14 | . 9 5 Drop 26 | . 10 16 Fire 57 | . 41 16 Melee . | . . . Ram . | . . . Kick 4 | . 4 . Crush 1 | . . 1 Escape Stasis 1 | . . 1 Rewire . | . . . Trap . | . . . Miscellaneous . | . . . Route ------- -11/Scrapyard -10/Materials -9/Materials History --------- Turn | Location | Event 20 | -11/Scrapyard | Discovered new exit (range 14) 62 | -11/Scrapyard | Entered Materials 235 | -10/Materials | Discovered new exit (range 16) 324 | -10/Materials | Build established: Mutant 381 | -10/Materials | Core integrity fell below 50% 450 | -10/Materials | Entered another Materials area 450 | -9/Materials | Evolved 2 slots: Propulsion x1, Utility x1 729 | -9/Materials | Crushed by falling debris 730 | -9/Materials | Self-destructed Last Messages --------------- 00710_ U-05 Engineer builds a Door. 00711_ U-05 Engineer builds a Wall. 00712_ U-05 Engineer lays Concrete. 00713_ U-05 Engineer builds a Wall. 00717_ U-05 Engineer lays Concrete. 00718_ U-05 Engineer builds a Wall. 00719_ U-05 Engineer lays Concrete. 00727_ Dropped Katana. 00728_ Acquired Beam Rifle. 00728_ U-05 Engineer lays Concrete. 00729_ The unstable cave ceiling collapses. 00729_ Crushed by falling debris. 00729_ Sensor Array destroyed. 00729_ System corrupted by crushing effect (+5). 00729_ Rocket Launcher destroyed. 00729_ System corrupted by crushing effect (+1). 00729_ Imp. Signal Interpreter destroyed. 00729_ System corrupted by crushing effect (+3). 00729_ Katana crushed. 00729_ U-05 Engineer lays Concrete. Map ----- +----------------------------------------------------+ | ?????????????????????????????????????????????????? | | ?????????????????????????????????????????????????? | | ?????????????????????????????????????????????????? | | ?????????????????????????????????????????? ?????? | | ????????????????????????????????????????? ????? | | ??????????????????????????????? ???????? #????? | | ??????????????????????????????? ???????? #????? | | ??????????????????????????????? ???????? #????? | | ??????????????????????????????? ???????# #????? | | ??????????????????????????????? ???????# #????? | | ??????????????????????????????? ???????# #????? | | ??????????????????????????????? ???????# #????? | | ?????????????????###########??? #??##### #????? | | ?????????????????# """ """ #??? #??# = #????? | | ???????????????### """ """ #???# T??# = #????? | | ???????????????? + """ """ #???# #??#!!= +????? | | ?????????????????# #???# #??#! ! #????? | | ?????????????????# #???# #??# / ###### | | ?????????????????# #???# #??#=// # | | ?????????????????# #?### #??##### # | | ?????????????????# ! !! ## ## #??????# # * ! | | ????????????# ???#####+###=#####+######## # ! | | ????????????# #### ]]]=[/ + + | | ????????????? + =]#### """ """ # # " ! | | ?????????????????#### u * ## """ """ # # ! | | ???????????????????# @ # """ """ [ # # [ | | ???????????????????## ####! # # ## | | ????????????????????# #??############## ##### | | ????????????????????# #?????# # #???## | | ???????????????????# ?????# + #????? | | ?????????????????? ?????# # #????? | | ????????????????? T !#????# !! # #??### | | ???????????????? #????# !! ?# #### | | ???????????????#+### #????# ! ?# | | ???????????????????#######????# ??# | | ??????????????????????????????#! ??# | | ??????????????????????????????#######???######## | | ???????????????????????????????????????????????## | | ????????????????????????????????????????????????# | | ????????????????????????????????????????????????# | | ????????????????????????????????????????????????# | | ????????????????????????????????????????????????# | | ????????????????????????????????????????????????# | | ???????????????????????????????????????????????## | | ???????????????????????????????????????????????# | | ???????????????????????????????????????????????# | | ???????????????????????????????????????????????# | | ???????????????????????????????????????????????# | | ???????????????????????????????????????????????# | | ???????????????????????????????????????????????### | +----------------------------------------------------+ Best States ------------- Heat Dissipation 38 Energy Generation 10 Energy Capacity 250 Matter Stores 300 Matter Capacity 300 Sight Range 16 Robot Scan Range 14 Terrain Scan Density 10 Evasion (%) 55 Recoil Reduction 3 Item Schematics ----------------- Flight Unit | -9/Materials | Scanalyzed Robot Schematics ------------------ None Fabricated ------------ Nothing Alien Tech Used ----------------- None Achievements -------------- None Challenges ------------ None Game ------ Seed TeslaUtilitySword Manual? 0 Play Time 00:08:02 Cumulative 37.5 hours Start 2024.04.24 @ 04:30:15 End 2024.04.24 @ 04:38:13 Sessions 1 Manual Loads 0 Difficulty Rogue Special Mode None Game No. 58 Rogue 42 Adventurer 16 Explorer 0 Win Type - Total 0 Types 0/0/0/0/0/0/0/0/0 Lore% 13 Gallery% 32 Achievement% 22 Wizard Run 0 Options --------- Layout 2 ASCII 0 Keyboard 0 Movement Mouse Keybinds 0 Fullscreen 2 Font 24/Smallcaps Map View 50x44 Zoom Use 0% Tactical HUD 1 Map Filters NONE Filters NONE Steam 1 RUN: 8aff8b2b-5ca6-4dff-b294-4ac1088bf380